bitfinex-derivatives/quotes_ETHF0:USTF0_20260307
["timestamp","ask_amount","ask_price","bid_price","bid_amount"]
[1772913479570,1.90413238,1955.4,1954.3,0.66723205]
[1772913483572,1.64842238,1955.4,1954.3,0.66723205]
[1772913484079,1.7308912,1955.6,1954.3,0.66723205]
[1772913485073,1.73521874,1955.6,1954.5,0.70995695]
[1772913485373,1.73521874,1955.6,1954.6,22.14]
[1772913485572,1.73521874,1955.6,1954.7,0.70010646]
[1772913486173,0.00432754,1955.6,1954.7,0.70010646]
[1772913487374,1.73521874,1955.6,1954.7,0.70010646]
[1772913488270,0.00432754,1955.6,1954.7,0.70010646]
[1772913490373,0.00432754,1955.6,1954.9,0.66310346]
[1772913490570,0.00432754,1955.6,1954.9,0.6694525]
[1772913490776,1.73521874,1955.6,1955.0,40.8]
[1772913491276,1.73521874,1955.6,1955.0,41.4628568]
[1772913491478,1.73521874,1955.6,1955.1,0.66185542]
[1772913492178,0.00432754,1955.6,1955.1,0.66185542]
[1772913492369,1.73521874,1955.6,1955.2,22.107]
[1772913492778,1.73521874,1955.6,1955.0,62.906]
[1772913492978,1.73521874,1955.6,1955.0,63.56671705]
[1772913493780,1.73521874,1955.6,1955.1,22.78672084]
[1772913496283,1.73521874,1955.6,1955.1,22.76554006]
[1772913496481,1.9865412,1955.9,1955.2,0.65920454]
[1772913497483,1.99090467,1955.9,1955.2,0.65920454]
[1772913499890,1.7308912,1956.2,1955.2,0.65920454]
[1772913500595,1.7308912,1956.3,1955.2,0.65920454]
[1772913501091,1.7308912,1956.1,1955.4,0.84267785]
[1772913501388,1.7308912,1956.1,1955.5,22.128]
[1772913501589,1.7308912,1955.9,1955.1,23.10832412]
[1772913501790,1.7308912,1955.7,1955.1,23.10832412]
[1772913502085,1.7308912,1955.7,1955.2,22.13]
[1772913502290,1.7308912,1955.7,1955.2,23.11032412]
[1772913502989,1.7308912,1955.7,1955.3,0.97858419]
[1772913504482,1.9865512,1955.8,1955.3,0.97858419]
[1772913504787,1.7308912,1955.9,1955.3,0.97858419]
[1772913504988,1.7308912,1955.9,1955.2,22.13]
[1772913505285,1.7308912,1955.9,1955.2,23.11313327]
[1772913506391,1.7308912,1955.9,1955.3,0.987523]
[1772913510590,0.00374227,1956.3,1955.3,0.987523]
[1772913510591,1.7308912,1956.2,1955.3,0.987523]
[1772913510992,1.7308912,1956.0,1955.3,0.987523]
[1772913511192,0.00374227,1956.3,1955.4,23.31412018]
[1772913511193,1.7308912,1955.8,1955.4,23.31412018]
[1772913511389,1.7308912,1955.8,1955.4,23.31512018]
[1772913511997,1.7308912,1955.8,1955.5,1.2111218]
[1772913512994,1.60482299,1956.0,1955.5,1.2111218]
[1772913514295,1.86046299,1956.0,1955.4,22.193]
[1772913515391,1.86046299,1956.0,1955.2,1.410256]
[1772913515596,1.86046299,1956.0,1955.2,22.225]
[1772913515896,1.60482299,1955.5,1955.0,40.8]
[1772913516097,1.60482299,1955.5,1954.9,23.64196659]
[1772913516599,1.60482299,1955.5,1955.0,1.40509075]
[1772913517395,1.60482299,1955.5,1954.9,40.80634904]
[1772913517597,1.60482299,1955.5,1954.9,63.04534904]
[1772913517997,1.60482299,1955.3,1954.8,22.244]
[1772913518198,1.60482299,1955.1,1954.6,1.41378828]
[1772913518401,1.60482299,1955.1,1954.6,64.45878828]
[1772913518804,14.58575034,1955.8,1954.7,1.40922297]
[1772913519000,1.60482299,1955.6,1954.7,1.40922297]
[1772913519304,1.60482299,1955.6,1954.7,22.25397927]
[1772913519898,1.60482299,1955.6,1954.7,23.66642684]
[1772913520507,1.86050299,1955.6,1954.7,23.66642684]
[1772913521705,1.86050299,1955.6,1954.8,1.40360654]
[1772913528106,1.86050299,1955.6,1954.9,23.68740817]
[1772913528304,1.86050299,1955.6,1954.7,0.00597927]
[1772913528305,1.60482299,1955.6,1954.7,0.00597927]
[1772913528512,1.60482299,1955.0,1954.0,1.73606771]
[1772913528910,1.60482299,1955.0,1954.2,1.73606771]
[1772913529719,1.60482299,1955.0,1954.2,1.74031792]
[1772913530914,0.25575,1955.1,1954.2,1.74031792]
[1772913531121,1.86057299,1955.1,1954.2,1.74031792]
[1772913534339,1.86057299,1955.1,1954.4,1.73606771]
[1772913539823,1.86057299,1955.1,1954.6,1.65282406]
[1772913542120,1.6638907,1955.6,1954.6,1.65282406]
[1772913543526,1.9195707,1955.6,1954.6,1.65282406]
[1772913547032,1.9195707,1955.6,1954.7,1.69283895]
[1772913547233,0.25568,1955.6,1954.7,1.69283895]
[1772913548330,0.25568,1955.6,1954.9,1.69283895]
[1772913548632,2.01423186,1955.6,1955.1,1.69283895]
[1772913552434,2.01423186,1955.6,1955.2,1.69283895]
[1772913554032,1.75855186,1955.8,1955.2,1.69283895]
[1772913554533,0.25568,1955.6,1955.2,1.69283895]
[1772913554733,1.75855186,1955.8,1955.3,1.83072663]
[1772913554930,1.75855186,1955.8,1955.4,1.69283895]
[1772913555529,0.25568,1955.6,1955.4,1.69283895]
[1772913555735,0.11563235,1955.6,1955.4,1.69283895]
[1772913556139,1.75855186,1955.8,1955.4,1.69283895]
[1772913560637,1.75855186,1955.8,1955.1,24.18383895]
[1772913561339,1.75855186,1955.8,1955.2,1.69283895]
[1772913575552,1.7934537,1955.6,1954.9,1.7670799]
[1772913575754,1.7934537,1955.6,1954.9,24.3590799]
[1772913576050,1.7934537,1955.6,1954.9,24.3610799]
[1772913576648,1.7934537,1955.4,1955.0,1.7670799]
[1772913577948,1.7934537,1956.0,1955.3,1.83072663]
[1772913578153,1.7934537,1955.8,1955.2,1.7670799]
[1772913578349,1.7934537,1955.8,1955.0,1.7670799]
[1772913579551,1.7934537,1955.8,1955.1,1.7670799]
[1772913580359,1.7934537,1955.6,1954.9,1.7670799]
[1772913580752,1.7934537,1955.6,1955.0,1.7670799]
[1772913582249,0.25567,1955.7,1954.6,22.558]
[1772913582250,1.7934537,1955.4,1954.8,1.7670799]
[1772913585857,1.7934537,1955.2,1954.6,3.59780653]
[1772913586061,0.25572,1955.3,1954.7,1.7670799]
[1772913586062,2.0491737,1955.3,1954.7,1.7670799]
[1772913588657,2.0491737,1955.3,1954.9,1.7670799]
[1772913591358,1.7934537,1955.8,1955.2,1.7670799]
[1772913591558,2.0491237,1955.7,1955.2,1.7670799]
[1772913599263,2.0491237,1955.7,1954.8,1.7670799]
[1772913601267,1.86842672,1955.5,1954.8,1.7670799]
[1772913601469,1.86842672,1955.5,1954.6,1.71916033]
[1772913603373,1.6789248,1955.9,1954.6,1.71916033]
[1772913603669,1.6789248,1955.7,1954.7,1.60226676]
[1772913604768,1.6789248,1955.3,1954.6,1.60226676]
[1772913606968,0.25571,1955.4,1954.6,1.60226676]
[1772913607163,1.6789248,1955.9,1954.9,1.60226676]
[1772913607471,1.9345648,1955.9,1954.9,1.60226676]
[1772913608370,0.25564,1955.9,1955.1,1.60226676]
[1772913611980,0.25564,1955.9,1955.3,1.60226676]
[1772913616180,1.6789248,1956.2,1955.4,1.60226676]
[1772913617886,1.6789248,1956.0,1955.4,1.60226676]
[1772913618475,1.68266707,1956.3,1955.5,1.60226676]
[1772913622684,0.00374227,1956.3,1955.6,1.60226676]
[1772913622876,0.00374227,1956.3,1955.6,1.60782134]
[1772913623073,1.68266707,1956.3,1955.6,1.60782134]
[1772913624885,0.00374227,1956.3,1955.6,1.60782134]
[1772913625478,1.68266707,1956.3,1955.6,1.60782134]
[1772913625782,1.93826707,1956.3,1955.6,1.60782134]
[1772913626889,0.00374227,1956.3,1955.6,1.60782134]
[1772913628791,1.68266707,1956.3,1955.6,1.60782134]
[1772913629588,0.00374227,1956.3,1955.7,1.60226676]
[1772913629788,0.25553,1956.8,1956.2,1.60226676]
[1772913629990,1.6789248,1956.9,1956.2,1.60226676]
[1772913630692,1.68420677,1956.9,1956.2,1.60226676]
[1772913631589,0.25553,1956.8,1956.2,1.60226676]
[1772913632796,1.68624566,1957.1,1956.2,1.60226676]
[1772913633798,1.69151552,1957.1,1956.2,1.60226676]
[1772913634500,0.00526986,1957.1,1956.5,1.65141948]
[1772913635596,0.25546,1957.4,1956.8,1.65141948]
[1772913636501,0.25959312,1957.4,1956.8,1.65141948]
[1772913636798,0.00413312,1957.4,1956.8,1.65141948]
[1772913636999,0.78305901,1957.7,1956.8,1.65141948]
[1772913637996,0.78868379,1957.7,1956.8,1.65141948]
[1772913638199,0.00562478,1957.7,1957.1,1.65141948]
[1772913638497,0.88995848,1957.5,1957.0,1.65141948]
[1772913639504,0.88995848,1957.5,1957.0,1.6572471]
[1772913640298,0.25542,1957.6,1957.0,1.6572471]
[1772913640504,1.08633302,1958.2,1957.0,1.6572471]
[1772913640704,1.08633302,1958.2,1957.2,1.80980997]
[1772913641306,1.54420983,1958.2,1957.2,1.80980997]
[1772913641495,0.06609071,1957.9,1957.2,1.80980997]
[1772913641701,0.06609071,1957.7,1957.0,1.81984866]
[1772913642203,0.32151071,1957.6,1957.0,1.81984866]
[1772913642501,0.25542,1957.6,1957.0,1.81984866]
[1772913645405,0.07522461,1957.3,1956.8,1.80228472]
[1772913645609,0.07522461,1957.3,1956.4,1.65141948]
[1772913646004,0.47972117,1957.1,1956.4,1.65141948]
[1772913646507,0.47972117,1957.1,1956.4,1.65612492]
[1772913646905,0.47703192,1956.9,1956.4,0.00470544]
[1772913647304,0.47703192,1956.9,1956.4,1.65612492]
[1772913649314,0.43780918,1956.9,1956.4,1.65612492]
[1772913650907,0.42670095,1956.7,1956.2,1.28512963]
[1772913651111,0.7929908,1957.3,1956.2,1.28512963]
[1772913651314,0.25547,1957.2,1956.2,1.28512963]
[1772913651514,0.7929908,1957.1,1956.2,1.28512963]
[1772913651814,0.79686525,1957.1,1956.2,1.29018006]
[1772913656212,0.00387445,1957.1,1956.2,1.29018006]
[1772913656417,0.78079147,1957.1,1956.2,1.29018006]
[1772913658919,0.76981537,1956.9,1956.2,1.29018006]
[1772913660319,0.00387445,1957.1,1956.2,1.29018006]
[1772913660522,0.76873527,1957.0,1956.2,1.29018006]
[1772913660918,0.76873527,1956.8,1956.2,1.29018006]
[1772913662023,0.76873527,1956.8,1956.2,0.00505043]
[1772913662518,0.25554,1956.7,1956.2,0.00505043]
[1772913662822,0.75325578,1956.6,1956.2,0.00505043]
[1772913663323,0.75325578,1956.4,1956.1,1.6644612]
[1772913663719,0.75325578,1956.4,1956.0,1.83297524]
[1772913664514,0.75325578,1956.4,1956.0,1.83890663]
[1772913664713,2.02659651,1956.5,1956.0,1.83890663]
[1772913665124,0.25557,1956.5,1956.0,1.83890663]
[1772913666124,2.02659651,1956.5,1956.0,1.83890663]
[1772913670024,0.25557,1956.5,1956.0,1.83890663]
[1772913670230,1.77102651,1956.8,1956.4,1.83297524]
[1772913672527,1.77102651,1957.0,1956.4,1.83297524]
[1772913672828,1.77102651,1957.0,1956.6,1.83297524]
[1772913677236,1.77102651,1957.0,1956.4,1.83297524]
[1772913680834,1.77102651,1956.8,1956.3,1.83297524]
[1772913681135,1.77102651,1956.6,1956.1,1.83297524]
[1772913685533,0.25554,1956.7,1956.2,1.83297524]
[1772913687238,1.77102651,1957.0,1956.4,1.83297524]
[1772913688138,1.77490096,1957.1,1956.6,1.83297524]
[1772913688333,2.02655651,1956.8,1956.4,1.83297524]
[1772913688539,2.02655651,1956.8,1956.2,1.83297524]
[1772913690433,0.25553,1956.8,1956.3,1.82932537]
[1772913690641,1.77490096,1957.1,1956.6,1.83297524]
[1772913694540,0.00387445,1957.1,1956.6,1.83297524]
[1772913696339,1.77880843,1957.2,1956.6,1.83297524]
[1772913697342,1.78467324,1957.2,1956.6,1.83297524]
[1772913700744,0.25549,1957.1,1956.6,1.83297524]
[1772913700947,1.77880843,1957.0,1956.4,1.80852081]
[1772913703349,1.77880843,1957.0,1956.6,1.80852081]
[1772913703753,0.25549,1957.1,1956.8,1.80852081]
[1772913704349,2.03429843,1957.1,1956.4,1.80852081]
[1772913705856,2.03429843,1957.1,1956.5,1.82932537]
[1772913706056,2.03429843,1957.1,1956.6,1.80852081]
[1772913715060,1.78467324,1957.2,1956.6,1.80852081]
[1772913715266,0.00586481,1957.2,1956.6,1.80852081]
[1772913715762,1.78467324,1957.2,1956.6,1.80852081]
[1772913716659,0.00586481,1957.2,1956.6,1.80852081]
[1772913719863,6.34839071,1957.9,1956.8,1.63017717]
[1772913719864,1.66116941,1957.7,1956.8,1.63017717]
[1772913720068,1.66116941,1957.7,1957.1,1.63017717]
[1772913720264,1.66116941,1958.0,1957.1,1.63017717]
[1772913720668,1.66116941,1958.0,1957.3,1.63017717]
[1772913720862,1.66714336,1958.0,1957.3,1.63017717]
[1772913721067,0.83097302,1958.2,1957.4,1.63017717]
[1772913721867,0.25529,1958.7,1957.9,1.82815505]
[1772913722066,1.92177152,1958.7,1958.0,1.63017717]
[1772913722369,1.72040629,1958.9,1958.0,1.63017717]
[1772913723072,1.72040629,1958.9,1958.3,1.63665845]
[1772913723370,0.00427497,1958.9,1958.3,1.63665845]
[1772913724070,1.72040629,1959.1,1958.3,1.63665845]
[1772913724266,1.72040629,1959.2,1958.3,1.63665845]
[1772913725270,1.72040629,1959.0,1958.3,1.63665845]
[1772913727171,1.97563629,1959.1,1958.3,1.63665845]
[1772913729874,1.7267512,1959.2,1958.3,1.63665845]
[1772913730271,1.7267512,1959.2,1958.4,1.63665845]
[1772913731372,0.00634491,1959.2,1958.4,1.63665845]
[1772913731571,1.7267512,1959.2,1958.4,1.63665845]
[1772913733871,1.9819712,1959.2,1958.4,1.63665845]
[1772913734073,1.9819712,1959.2,1958.2,1.63665845]
[1772913734272,1.9819712,1959.2,1958.1,1.63665845]
[1772913734467,1.72040629,1958.6,1958.0,1.63665845]
[1772913734666,1.72040629,1958.6,1957.9,1.64099156]
[1772913736575,1.72040629,1958.4,1957.9,0.00433311]
[1772913736779,1.72040629,1958.4,1957.5,42.43665845]
[1772913736980,1.72040629,1958.4,1957.6,1.63665845]
[1772913737480,1.72040629,1958.2,1957.6,1.63665845]
[1772913737679,1.72040629,1958.2,1957.6,1.6419776]
[1772913738678,0.25536,1958.1,1957.6,0.00531915]
[1772913738881,1.72040629,1958.0,1957.2,1.63665845]
[1772913739779,1.72040629,1957.8,1957.2,0.00427345]
[1772913739980,1.72615409,1957.8,1957.2,0.00427345]
[1772913740886,1.72615409,1957.8,1957.2,1.6409319]
[1772913741087,0.0057478,1957.8,1957.2,1.6409319]
[1772913741283,6.34839071,1958.9,1957.2,1.6409319]
[1772913741284,0.25531,1958.5,1957.2,1.6409319]
[1772913741583,1.72040629,1958.9,1957.2,1.6409319]
[1772913742179,0.25527,1958.8,1957.2,1.6409319]
[1772913742383,1.72040629,1958.7,1957.2,1.6409319]
[1772913745485,0.26099816,1958.8,1957.4,1.63665845]
[1772913745486,1.72040629,1958.5,1957.4,1.63665845]
[1772913745989,1.72040629,1958.5,1957.6,1.63665845]
[1772913751395,1.72040629,1958.5,1957.8,1.63665845]
[1772913754098,1.95810069,1958.7,1957.8,1.63665845]
[1772913761898,1.70854885,1958.8,1957.8,1.63665845]
[1772913764205,1.70854885,1958.8,1958.0,1.71289694]
[1772913780314,1.96382885,1958.8,1958.0,1.71289694]
[1772913780522,1.57218935,1958.6,1957.7,1.64790696]
[1772913780722,1.57791751,1958.8,1957.7,1.64790696]
[1772913781212,0.00572816,1958.8,1957.7,1.64790696]
[1772913781522,1.57218935,1959.2,1957.7,1.64790696]
[1772913781814,1.57218935,1958.8,1957.9,1.64790696]
[1772913782422,1.57700099,1958.8,1957.9,1.64790696]
[1772913792824,0.00481164,1958.8,1957.9,1.64790696]
[1772913793029,1.50541958,1958.8,1957.9,1.64790696]
[1772913793223,0.00481164,1958.8,1957.9,1.64790696]
[1772913796929,1.50541958,1958.8,1957.9,1.64790696]
[1772913798529,1.50541958,1958.8,1958.1,3.47225006]
[1772913798725,1.50541958,1958.8,1958.2,1.64727691]
[1772913800134,1.50541958,1958.8,1958.3,3.47225006]
[1772913800330,1.50541958,1958.8,1958.4,1.64727691]
[1772913801027,1.50060794,1958.9,1958.5,1.82497315]
[1772913801233,1.50060794,1959.3,1958.8,1.64727691]
[1772913802128,1.50472766,1959.3,1958.8,1.65384408]
[1772913802325,1.75578794,1959.5,1959.0,1.64727691]
[1772913803432,1.76238917,1959.5,1959.0,1.64727691]
[1772913803838,1.50060794,1959.7,1959.2,1.64727691]
[1772913804030,1.50060794,1959.7,1958.8,1.65384408]
[1772913804031,1.50060794,1959.6,1958.8,1.65384408]
[1772913804337,1.50060794,1959.6,1958.8,42.45384408]
[1772913805032,1.50060794,1959.4,1958.8,40.80656717]
[1772913805237,1.50060794,1959.2,1958.6,1.64727691]
[1772913805434,1.50060794,1959.2,1958.8,1.64727691]
[1772913806137,1.50060794,1959.2,1958.8,1.65150291]
[1772913807137,1.50060794,1959.4,1958.8,1.65150291]
[1772913812438,0.0041521,1959.6,1958.8,1.65150291]
[1772913812439,1.50866574,1959.5,1959.0,1.48331157]
[1772913812842,1.50866574,1959.5,1958.8,1.48753757]
[1772913813036,1.50866574,1959.4,1958.8,1.48753757]
[1772913813237,1.50866574,1959.4,1958.8,0.004226]
[1772913813843,1.50866574,1959.2,1958.4,1.82497315]
[1772913814043,1.50866574,1959.2,1958.5,1.48331157]
[1772913814745,1.50866574,1959.2,1958.5,1.48796077]
[1772913816656,1.50866574,1959.5,1958.5,1.48796077]
[1772913817745,1.76798784,1959.6,1958.5,1.48796077]
[1772913818248,1.51281784,1959.6,1958.5,1.48796077]
[1772913819350,0.0041521,1959.6,1958.8,1.48331157]
[1772913819647,1.50866574,1959.9,1959.0,1.48331157]
[1772913820048,1.50866574,1960.1,1959.0,1.48331157]
[1772913820249,1.50866574,1960.4,1959.2,1.48331157]
[1772913820653,1.5142851,1960.4,1959.2,1.48331157]
[1772913820851,1.5142851,1960.4,1959.4,1.48331157]
[1772913824655,1.5142851,1960.4,1959.5,1.48331157]
[1772913825155,1.50866574,1960.2,1959.1,1.48331157]
[1772913825553,1.50866574,1960.2,1959.1,42.28331157]
[1772913825755,1.50866574,1960.2,1959.2,1.48331157]
[1772913827155,1.50866574,1960.2,1959.3,21.404]
[1772913827358,1.50866574,1960.2,1959.3,22.88731157]
[1772913827758,1.50866574,1960.2,1959.2,1.48331157]
[1772913829852,1.50866574,1960.2,1959.3,1.48331157]
[1772913830757,1.5142851,1960.4,1959.3,1.48331157]
[1772913831159,1.5142851,1960.4,1959.1,40.8]
[1772913831160,1.5142851,1960.4,1959.5,1.48331157]
[1772913836870,1.50866574,1960.8,1959.7,1.48331157]
[1772913837572,1.50866574,1961.4,1959.7,1.48331157]
[1772913837873,1.51473708,1961.4,1960.0,1.48331157]
[1772913838075,1.51473708,1961.4,1960.1,40.8]
[1772913838276,1.51473708,1961.4,1960.2,1.48331157]
[1772913839472,1.51473708,1961.4,1960.4,1.48331157]
[1772913841079,1.42238647,1961.0,1960.1,42.21340357]
[1772913841580,1.42238647,1961.0,1960.2,1.41340357]
[1772913842577,1.42238647,1961.0,1960.0,1.53191248]
[1772913842981,1.42238647,1961.0,1960.0,42.33191248]
[1772913843179,1.42238647,1961.0,1960.1,1.52597138]
[1772913845382,1.42238647,1961.0,1960.2,1.52597138]
[1772913846781,1.47296662,1961.3,1960.2,1.52597138]
[1772913848879,0.00607134,1961.4,1960.2,1.78105138]
[1772913849182,1.47903796,1961.4,1960.2,1.78105138]
[1772913849681,1.47296662,1962.0,1960.2,1.78105138]
[1772913849884,1.47296662,1962.0,1960.4,1.52597138]
[1772913850182,1.72782662,1962.0,1960.4,1.52597138]
[1772913850486,1.72782662,1962.0,1960.6,1.52597138]
[1772913850686,1.7334292,1962.0,1960.6,1.52597138]
[1772913857690,1.7334292,1962.0,1960.8,1.52597138]
[1772913860185,1.7334292,1962.0,1960.5,1.52597138]
[1772913860186,1.72784662,1961.8,1960.5,1.52597138]
[1772913860383,1.47296662,1961.6,1960.5,1.52597138]
[1772913863393,1.47296662,1961.4,1960.5,1.52597138]
[1772913867498,1.47296662,1961.2,1960.5,1.52597138]
[1772913868793,1.47296662,1961.2,1960.1,1.52597138]
[1772913869193,1.47296662,1961.0,1960.1,1.52597138]
[1772913872397,1.47296662,1961.0,1960.0,0.0059411]
[1772913872703,1.41429317,1960.8,1960.0,1.41876754]
[1772913887509,1.41429317,1960.6,1960.0,0.0059411]
[1772913887710,1.41970871,1960.6,1960.0,1.41876754]
[1772913888415,0.00541554,1960.6,1960.0,1.41876754]
[1772913889021,1.41970871,1960.6,1960.0,1.41876754]
[1772913894327,0.00541554,1960.6,1960.0,1.41876754]
[1772913897722,1.41970871,1960.6,1960.0,1.41876754]
[1772913900519,1.41095451,1960.4,1959.6,1.49007049]
[1772913900725,1.41095451,1960.4,1959.1,20.764]
[1772913900726,1.41095451,1960.2,1959.2,1.49007049]
[1772913901225,1.41095451,1960.2,1959.4,1.49007049]
[1772913901425,1.41095451,1960.2,1959.4,1.49598797]
[1772913903023,1.45298653,1960.4,1959.4,1.49598797]
[1772913903422,1.45298653,1960.5,1959.4,1.49598797]
[1772913903723,1.45298653,1960.5,1959.6,1.36900223]
[1772913906928,0.00541554,1960.6,1959.6,1.36900223]
[1772913907630,1.45840207,1960.6,1959.6,1.36900223]
[1772913915434,0.00541554,1960.6,1959.6,1.36900223]
[1772913915932,1.45840207,1960.6,1959.6,1.36900223]
[1772913920329,0.00541554,1960.6,1959.6,1.36900223]
[1772913920535,1.45298653,1960.9,1959.8,1.36900223]
[1772913920837,1.45298653,1961.2,1960.2,1.36900223]
[1772913921136,1.45298653,1961.2,1960.4,1.36900223]
[1772913921634,1.45941759,1961.2,1960.4,1.36900223]
[1772913921836,0.00643106,1961.2,1960.4,1.36900223]
[1772913927540,1.45941759,1961.2,1960.4,1.36900223]
[1772913927942,0.00643106,1961.2,1960.4,1.36900223]
[1772913928835,1.45298653,1961.7,1960.4,1.36900223]
[1772913929134,1.45298653,1961.7,1960.6,1.36900223]
[1772913929936,0.00431578,1961.7,1960.6,1.36900223]
[1772913930340,1.45730231,1961.7,1960.6,1.36900223]
[1772913934944,0.00431578,1961.7,1960.6,1.36900223]
[1772913936447,1.37136938,1961.9,1961.0,1.42309348]
[1772913936643,1.37136938,1962.3,1961.4,1.42309348]
[1772913937144,1.37136938,1962.3,1961.6,1.42309348]
[1772913937543,1.37721676,1962.3,1961.6,1.42742364]
[1772913937743,1.37136938,1962.1,1960.9,1.42309348]
[1772913938046,1.37136938,1961.9,1960.9,1.42309348]
[1772913938348,1.37136938,1961.9,1961.1,1.42309348]
[1772913938745,1.37136938,1961.9,1961.1,1.42874843]
[1772913938946,1.37136938,1961.9,1960.8,1.42309348]
[1772913939843,1.37136938,1961.7,1960.6,1.42309348]
[1772913940050,1.37136938,1961.7,1960.6,1.42673648]
[1772913944258,1.37136938,1961.9,1960.6,1.42673648]
[1772913944959,1.37136938,1962.1,1961.0,1.42309348]
[1772913945154,1.37136938,1962.1,1961.2,1.42309348]
[1772913945359,1.37136938,1962.1,1961.3,1.42309348]
[1772913948462,1.37136938,1961.9,1961.1,1.42309348]
[1772913948662,1.37136938,1961.9,1960.7,1.42309348]
[1772913952165,0.25488,1961.8,1960.7,1.42309348]
[1772913952372,1.37136938,1961.7,1960.7,1.42309348]
[1772913960176,1.38245502,1961.5,1960.7,1.42309348]
[1772913960474,1.38245502,1961.5,1960.8,1.4438889]
[1772913963975,1.36655732,1961.3,1960.6,0.003643]
[1772913964179,1.36655732,1961.3,1960.4,1.3917106]
[1772913965079,1.36655732,1961.3,1960.4,1.39695322]
[1772913968882,1.36655732,1961.6,1960.4,1.39695322]
[1772913971175,1.36655732,1961.6,1960.6,1.3917106]
[1772913982180,1.3958417,1961.8,1960.6,1.3917106]
[1772913999397,4.22971345,1962.2,1960.6,1.6467406]
[1772913999599,1.41314047,1962.2,1960.7,1.43877061]
[1772913999895,0.00584738,1962.3,1960.9,1.43877061]
[1772914000089,1.41898785,1962.3,1960.9,1.43877061]
[1772914000288,1.41898785,1962.3,1961.1,1.43877061]
[1772914000487,1.41898785,1962.3,1961.3,1.43877061]
[1772914004701,1.41898785,1962.3,1961.4,1.43877061]
[1772914005907,1.41898785,1962.3,1961.6,1.43877061]
[1772914017711,0.00584738,1962.3,1961.6,1.43877061]
[1772914017917,10.12,1962.8,1961.6,1.43877061]
[1772914017918,1.41314047,1962.5,1961.6,1.43877061]
[1772914019012,1.41841337,1962.5,1961.6,1.43877061]
[1772914020721,1.41841337,1962.5,1961.7,1.40681178]
[1772914022918,0.0052729,1962.5,1961.7,1.40681178]
[1772914023417,1.36195658,1962.5,1961.7,1.40681178]
[1772914024521,1.36195658,1962.5,1962.1,1.41282075]
[1772914024721,1.36195658,1962.5,1962.1,1.41778822]
[1772914025723,0.42617574,1962.9,1962.1,1.41778822]
[1772914025919,0.35302747,1962.7,1962.1,1.41778822]
[1772914027021,0.35795083,1962.7,1962.1,1.41778822]
[1772914033236,0.00492336,1962.7,1962.1,1.41778822]
[1772914034129,0.00492336,1962.7,1962.3,1.41282075]
[1772914034530,0.38184937,1962.8,1962.4,3.2307339]
[1772914034729,0.83994583,1963.2,1962.7,1.43808173]
[1772914034927,0.01238959,1963.1,1962.5,1.43808173]
[1772914035436,0.0188784,1963.1,1962.5,1.43808173]
[1772914035638,0.011964,1963.0,1962.5,1.43808173]
[1772914038943,0.01562966,1963.1,1962.7,1.43879208]
[1772914039742,0.00648881,1963.1,1962.7,1.43879208]
[1772914041939,1.81791315,1963.5,1962.1,23.21888062]
[1772914041940,1.35315686,1963.8,1963.1,1.47955551]
[1772914042137,0.93353908,1963.8,1963.3,1.47955551]
[1772914043139,0.93870341,1963.8,1963.3,1.47955551]
[1772914043345,0.00516433,1963.8,1963.3,1.47955551]
[1772914044342,0.25456,1964.3,1963.7,1.48290443]
[1772914044537,2.07247315,1964.3,1963.5,1.48290443]
[1772914045246,0.42720525,1964.4,1963.5,1.47469549]
[1772914045544,0.00367077,1964.4,1963.5,1.48058269]
[1772914046347,1.81791315,1964.2,1963.5,1.48058269]
[1772914047548,9.17162019,1964.4,1963.5,1.48058269]
[1772914050748,1.81791315,1964.0,1963.2,1.47133508]
[1772914051844,1.81791315,1964.0,1963.2,1.47649238]
[1772914053254,6.675,1964.2,1963.5,1.46317917]
[1772914053943,8.49291315,1964.2,1963.5,1.46317917]
[1772914054553,6.675,1964.2,1963.5,1.46317917]
[1772914054748,6.92957,1964.2,1963.4,1.46728786]
[1772914054948,6.92957,1964.2,1963.2,0.0051718]
[1772914055150,6.92957,1964.2,1963.2,1.47245966]
[1772914057959,0.00091213,1963.7,1963.2,1.47245966]
[1772914085777,0.73602367,1963.4,1962.5,1.39560345]
[1772914086275,0.25466,1963.5,1962.0,3.21167304]
[1772914086276,0.73602367,1963.2,1962.0,3.21167304]
[1772914086483,0.73602367,1962.9,1962.1,1.39560345]
[1772914086689,10.82100233,1962.9,1962.1,1.40107219]
[1772914086882,6.57855526,1962.8,1962.2,1.39560345]
[1772914087179,0.00640363,1962.9,1962.2,1.39560345]
[1772914090678,0.79554803,1963.6,1962.5,1.39560345]
[1772914090885,7.36149255,1963.5,1962.6,1.39560345]
[1772914091082,6.56594452,1963.4,1962.6,1.39560345]
[1772914091683,6.57076981,1963.4,1962.6,1.39560345]
[1772914091882,0.00482529,1963.4,1962.6,1.39560345]
[1772914093385,0.79628821,1963.4,1962.6,1.39560345]
[1772914093778,0.79757547,1963.7,1962.6,1.39560345]
[1772914094881,0.80420915,1963.7,1962.6,1.39560345]
[1772914096880,0.00754581,1963.7,1962.8,1.39560345]
[1772914098279,10.12,1964.3,1963.1,1.39560345]
[1772914098482,0.81274483,1964.3,1963.2,1.39560345]
[1772914099291,0.81781525,1964.3,1963.2,1.39560345]
[1772914103990,0.81781525,1964.3,1963.4,1.39560345]
[1772914104889,0.83788019,1964.3,1963.4,1.39560345]
[1772914109490,0.83788019,1964.3,1963.6,1.39560345]
[1772914109690,0.83788019,1964.3,1963.6,1.40106908]
[1772914110789,0.00507042,1964.3,1963.6,1.40106908]
[1772914116794,0.88216807,1964.3,1963.6,1.40106908]
[1772914117094,0.87163202,1963.9,1963.0,1.42495774]
[1772914117993,0.87163202,1963.9,1963.0,1.42951601]
[1772914120095,4.23604344,1964.2,1963.0,1.42951601]
[1772914120301,0.00507042,1964.3,1963.2,1.42495774]
[1772914120597,0.8697345,1964.3,1963.4,1.42495774]
[1772914121092,0.00507042,1964.3,1963.4,1.42495774]
[1772914123195,0.00507042,1964.3,1963.6,1.42495774]
[1772914126106,0.84481797,1964.3,1963.6,1.42495774]
[1772914126313,0.83974755,1964.1,1963.1,1.42495774]
[1772914126508,0.83974755,1963.9,1963.1,1.42495774]
[1772914126715,0.84001381,1963.7,1963.1,1.42495774]
[1772914134926,0.85430463,1964.1,1963.1,1.42495774]
[1772914135222,7.33154594,1964.0,1963.1,1.42495774]
[1772914135422,0.85430463,1964.0,1963.1,1.42495774]
[1772914141123,0.87192354,1963.8,1963.0,1.42660742]
[1772914141328,0.87192354,1963.6,1963.0,1.42660742]
[1772914141818,1.12677931,1963.7,1963.0,1.42660742]
[1772914142225,0.87178662,1963.6,1963.0,1.42660742]
[1772914155740,0.8747564,1963.4,1962.7,1.39968658]
[1772914156144,1.1294164,1963.5,1962.7,1.39968658]
[1772914156439,7.37079767,1963.4,1962.7,1.39968658]
[1772914156640,0.8747564,1963.4,1962.7,1.39968658]
[1772914156841,0.8747564,1963.4,1962.7,1.40511958]
[1772914157136,0.86729903,1963.2,1962.7,0.005433]
[1772914157340,0.86729903,1963.0,1962.7,0.005433]
[1772914157536,0.86729903,1963.0,1961.8,10.63300199]
[1772914157537,0.86729903,1963.0,1962.3,1.39968658]